bitfinex/quotes_ETHUSD_20250626
["timestamp","ask_amount","ask_price","bid_price","bid_amount"]
[1750951865498,0.8172,2417.4,2416.0,4.13907284]
[1750951865696,0.8172,2417.4,2416.1,0.41390728]
[1750951865996,0.8172,2417.4,2416.2,4.1386226]
[1750951866218,4.13622444,2417.7,2415.4,0.7582]
[1750951866219,0.779,2417.2,2415.4,0.7582]
[1750951866421,1.329,2416.9,2415.4,0.7582]
[1750951866627,0.55,2416.4,2415.2,4.14031603]
[1750951866828,0.779,2416.5,2414.9,0.7582]
[1750951867039,0.55,2416.4,2415.1,14.48751073]
[1750951867203,0.8209,2416.1,2414.5,0.7817]
[1750951867512,0.55,2416.0,2414.5,0.7817]
[1750951867711,0.8209,2415.9,2414.6,4.1414727]
[1750951868041,0.55,2415.4,2413.9,0.04142]
[1750951868211,0.7852,2415.1,2413.9,0.04142]
[1750951868411,0.55,2415.0,2413.9,0.04142]
[1750951868949,0.55,2415.0,2413.2,12.07874824]
[1750951868950,10.0,2413.4,2411.8,21.61530382]
[1750951869110,0.55,2413.1,2411.5,10.70006835]
[1750951869448,0.8109,2413.2,2412.5,4.14507772]
[1750951869746,0.8109,2413.2,2412.3,4.14530005]
[1750951869918,0.8109,2413.2,2411.4,10.0]
[1750951870118,0.8109,2413.2,2412.2,4.1454685]
[1750951870441,0.7931,2414.2,2413.1,4.14400724]
[1750951870643,0.7931,2414.2,2412.6,5.878962]
[1750951870842,4.93526995,2414.2,2412.7,4.14457368]
[1750951871024,30.0,2414.0,2412.6,4.14473978]
[1750951871230,4.6360089,2414.1,2412.4,5.15971759]
[1750951871231,1.3431,2413.9,2412.4,0.25]
[1750951871430,11.185,2413.8,2412.4,0.25]
[1750951871641,0.7931,2413.9,2412.4,0.25]
[1750951871642,0.7931,2413.9,2413.2,4.14385569]
[1750951871855,0.7701,2415.2,2414.1,4.14215955]
[1750951872150,0.7701,2415.2,2413.9,0.8142]
[1750951872449,0.7701,2415.2,2413.5,14.14336026]
[1750951872647,0.7701,2415.2,2414.1,4.14221187]
[1750951872949,0.7701,2415.2,2414.9,4.14087139]
[1750951873140,0.8125,2415.7,2414.2,28.735877]
[1750951873334,0.8125,2415.7,2414.7,4.14124248]
[1750951873536,14.48793301,2416.7,2414.4,4.14175165]
[1750951873537,0.8125,2416.2,2414.6,30.0]
[1750951873751,0.8125,2416.2,2415.4,4.13995427]
[1750951873924,0.8125,2416.2,2415.2,4.14033163]
[1750951874248,0.8125,2416.2,2414.9,4.14095821]
[1750951874419,0.2064,2415.5,2415.3,4.14027022]
[1750951874615,0.2064,2415.5,2415.3,4.14011311]
[1750951874818,0.2064,2415.5,2415.3,4.14016287]
[1750951875019,0.2064,2415.5,2415.2,4.14039445]
[1750951875219,0.2064,2415.5,2415.3,4.14020559]
[1750951875414,0.2064,2415.5,2415.0,0.2064]
[1750951875621,0.8125,2416.2,2415.4,4.14010101]
[1750951875829,0.2064,2416.0,2415.4,0.2064]
[1750951876030,0.7836,2416.8,2415.3,30.0]
[1750951876250,0.2064,2416.6,2416.1,0.2064]
[1750951876438,0.7836,2416.8,2415.2,4.14036768]
[1750951876636,0.7836,2416.8,2415.1,12.08777]
[1750951876840,0.7836,2416.8,2416.0,4.13890673]
[1750951877038,0.7836,2416.8,2416.1,4.13888555]
[1750951877320,0.7836,2416.8,2415.9,4.1392382]
[1750951877643,0.7836,2416.8,2416.0,4.13891167]
[1750951878033,0.7836,2416.8,2415.2,10.0]
[1750951878357,0.7836,2416.8,2415.8,4.13925948]
[1750951878556,0.7836,2416.8,2415.4,4.14010101]
[1750951878852,0.7836,2416.8,2415.1,20.0]
[1750951879054,0.7836,2416.8,2415.5,4.13977793]
[1750951879244,0.7836,2416.8,2415.1,10.0]
[1750951879444,0.7836,2416.8,2415.1,4.14061529]
[1750951879742,0.7836,2416.8,2415.3,4.14027242]
[1750951879943,0.7836,2416.8,2415.0,10.8317]
[1750951879944,0.55,2416.7,2415.0,14.9724244]
[1750951880144,0.7836,2416.8,2415.0,10.8317]
[1750951880446,50.0,2416.6,2414.3,4.14184671]
[1750951880646,0.55,2416.1,2413.8,34.14279506]
[1750951880952,10.7818,2416.2,2414.7,4.14127787]
[1750951881156,10.7818,2416.2,2415.2,4.14038585]
[1750951881157,0.7818,2416.2,2415.2,4.14038585]
[1750951881355,0.7818,2416.2,2414.6,30.0]
[1750951881556,0.7818,2416.2,2414.5,24.349994]
[1750951881744,0.7818,2416.2,2415.2,4.14044385]
[1750951882056,0.7818,2416.2,2415.0,4.14068404]
[1750951882257,0.7818,2416.2,2415.0,0.4140684]
[1750951882459,0.7735,2416.7,2415.1,11.08157431]
[1750951882776,0.7735,2416.7,2415.4,4.14010101]
[1750951882942,0.7735,2416.7,2416.0,4.13905454]
[1750951883138,0.7735,2416.7,2415.2,10.0]
[1750951883441,0.7735,2416.7,2415.9,4.13912995]
[1750951883754,0.7735,2416.7,2415.3,10.346]
[1750951883956,4.6881479,2416.6,2414.6,0.7965]
[1750951884144,0.7735,2416.7,2414.8,10.0]
[1750951884331,0.7735,2416.7,2415.5,4.13992394]
[1750951884522,0.7735,2416.7,2415.3,19.407361]
[1750951884729,4.13616246,2417.7,2415.7,4.13958686]
[1750951884921,1.71237285,2417.8,2415.7,11.08157431]
[1750951885125,0.7629,2417.5,2416.2,4.13863257]
[1750951885351,0.7629,2417.5,2416.2,16.71433]
[1750951885520,0.7629,2417.5,2415.8,12.509235]
[1750951885729,0.7629,2417.5,2416.2,4.13871726]
[1750951885926,0.7629,2417.5,2416.0,10.0]
[1750951886263,0.7629,2417.5,2416.5,4.13812385]
[1750951886463,0.7629,2417.5,2416.2,10.0]
[1750951886773,0.2064,2416.9,2416.5,0.2064]
[1750951887065,0.2064,2416.5,2416.1,4.34516758]
[1750951887266,0.7629,2417.5,2416.4,4.13838768]
[1750951887470,0.2064,2416.9,2416.4,0.2064]
[1750951887635,0.2064,2417.5,2417.4,4.13667576]
[1750951887828,0.2064,2417.6,2417.2,4.34335653]
[1750951888028,0.2064,2417.6,2417.2,0.2064]
[1750951888257,0.7697,2418.0,2417.0,4.13726032]
[1750951888456,0.7697,2418.0,2416.9,4.13746967]
[1750951889170,0.7697,2418.0,2416.9,4.13749397]
[1750951889338,0.7697,2418.0,2416.6,30.0]
[1750951889542,0.7697,2418.0,2417.4,4.13651855]
[1750951889741,0.7697,2418.0,2417.4,4.13654935]
[1750951889934,0.7697,2418.0,2416.5,10.345]
[1750951889935,0.7697,2418.0,2417.0,4.13733808]
[1750951890135,0.7697,2418.0,2416.9,4.13745558]
[1750951890344,0.7697,2418.0,2416.5,10.345]
[1750951890569,0.7697,2418.0,2417.0,4.1372462]
[1750951890738,0.7697,2418.0,2416.7,10.0]
[1750951890932,0.7697,2418.0,2416.6,4.1379496]
[1750951890933,4.13582087,2417.9,2416.6,4.1379496]
[1750951891146,0.8111,2417.7,2416.5,14.48311948]
[1750951891343,0.54971072,2417.6,2416.5,10.345]
[1750951891687,0.8111,2417.7,2416.5,10.345]
[1750951892069,0.8111,2417.7,2416.5,14.4830943]
[1750951892274,0.55,2417.6,2416.5,10.345]
[1750951892458,0.54431105,2417.6,2416.5,14.4831412]
[1750951892665,0.7571,2417.7,2416.9,4.13740702]
[1750951892869,0.7571,2417.7,2417.0,4.13735001]
[1750951893392,0.7571,2417.7,2416.8,4.13763842]
[1750951893684,0.8238,2417.4,2415.4,12.004454]
[1750951893885,0.8238,2417.4,2415.5,34.13992962]
[1750951894061,0.8238,2417.4,2416.2,4.13864278]
[1750951894261,0.8238,2417.4,2415.4,21.26563]
[1750951894886,0.55,2416.9,2415.6,4.13966782]
[1750951895049,0.55,2416.9,2415.3,0.7992]
[1750951895050,4.96121797,2417.0,2415.3,0.7992]
[1750951895249,4.9615725,2416.8,2415.4,4.139961]
[1750951895451,0.8238,2416.3,2414.2,40.0]
[1750951895676,0.8238,2416.3,2414.5,14.14151633]
[1750951895881,0.8238,2416.1,2413.9,14.48255868]
[1750951896096,0.8238,2415.9,2414.1,4.14233047]
[1750951896323,0.8238,2415.9,2414.8,4.14103945]
[1750951896496,1.90618,2415.9,2414.8,4.14103945]
[1750951896837,0.8238,2415.7,2414.7,4.14115501]
[1750951897341,0.8238,2415.7,2414.4,4.14178009]
[1750951897521,0.8238,2415.7,2414.5,4.14153664]
[1750951897827,1.32010619,2415.7,2414.5,4.14151991]
[1750951898000,1.32010619,2415.7,2414.7,4.14120481]
[1750951898001,0.8238,2415.7,2414.7,4.14120481]
[1750951898202,0.8238,2415.7,2414.1,10.0]
[1750951898400,0.2064,2415.2,2415.0,4.14074835]
[1750951898607,0.2064,2415.2,2414.8,0.2064]
[1750951898801,0.2064,2415.2,2415.1,4.14061529]
[1750951899095,0.2064,2415.4,2414.9,0.2064]
[1750951899315,0.8238,2415.7,2415.4,4.13993035]
[1750951899513,0.2064,2415.6,2415.2,0.2064]
[1750951899696,0.8238,2415.7,2414.6,0.7763]
[1750951899905,1.0302,2415.7,2415.2,0.2064]
[1750951900112,0.8238,2415.7,2414.9,4.14085776]
[1750951900416,0.2064,2415.3,2414.9,4.34733467]
[1750951900616,0.2064,2415.3,2414.9,4.7613253]
[1750951900848,0.8238,2415.7,2415.1,4.14051163]
[1750951901011,0.8238,2415.7,2414.9,0.41408578]
[1750951901206,0.2064,2415.9,2415.5,0.2064]
[1750951901641,0.2064,2415.9,2415.5,4.34625846]
[1750951901814,0.2064,2415.9,2415.5,0.2064]
[1750951902011,0.2064,2415.9,2415.0,0.45551549]
[1750951902210,0.2064,2415.3,2414.9,0.2064]
[1750951902416,0.2064,2415.3,2414.3,2.934]
[1750951902417,0.7804,2415.3,2414.3,4.14198732]
[1750951902617,0.2064,2415.1,2414.7,0.2064]
[1750951902811,0.2064,2415.4,2415.0,0.2064]
[1750951903111,0.9651,2415.3,2414.8,0.2064]
[1750951903311,0.7888,2415.7,2414.4,10.0]
[1750951903516,0.7888,2416.8,2415.7,4.13952735]
[1750951903716,0.2064,2416.0,2415.7,4.13952735]
[1750951903923,0.2064,2416.0,2415.9,4.13924417]
[1750951904324,0.7888,2416.8,2415.9,4.13924417]
[1750951904641,0.2064,2416.3,2416.0,4.13905475]
[1750951904843,0.2064,2416.3,2415.9,0.2064]
[1750951905052,0.7888,2416.8,2416.1,0.2064]
[1750951905053,0.2064,2416.6,2416.1,0.2064]
[1750951905215,0.2064,2416.6,2416.3,4.13841381]
[1750951905410,0.7888,2416.8,2416.0,4.13907284]
[1750951905747,0.9952,2416.8,2416.4,4.13827888]
[1750951905946,0.00125,2416.9,2416.8,4.13770274]
[1750951906166,0.00125,2416.9,2416.8,4.34410274]
[1750951906351,0.00125,2416.9,2416.2,10.343]
[1750951906850,0.00125,2416.9,2416.8,4.13770274]
[1750951907066,0.00125,2416.9,2416.7,4.13784756]
[1750951907216,0.00125,2416.9,2416.7,0.41378476]
[1750951907425,0.00125,2416.9,2416.2,10.343]
[1750951907754,0.00125,2416.9,2416.2,18.81969136]
[1750951907922,0.00125,2416.9,2416.2,14.681]
[1750951908124,0.00125,2416.9,2416.2,18.81965782]
[1750951908330,0.7693,2416.8,2415.4,10.0]
[1750951908529,0.00125,2416.9,2416.3,0.7773]
[1750951909269,0.00125,2416.9,2416.8,4.13770274]
[1750951909423,0.00125,2416.9,2416.7,4.13785637]
[1750951909424,0.00125,2416.9,2416.7,10.0]
[1750951909624,0.00125,2416.9,2416.8,4.13770274]
[1750951909838,0.00125,2416.9,2416.8,44.09471274]
[1750951910037,0.7992,2418.2,2418.1,4.13547826]
[1750951910338,10.341,2419.4,2418.1,4.13547826]
[1750951910339,1.75565372,2419.1,2418.2,4.13522661]
[1750951910537,0.7992,2419.1,2418.2,4.13522661]
[1750951910756,0.7992,2419.1,2418.1,4.13547826]
[1750951910757,0.7992,2419.1,2418.6,4.13453879]
[1750951910957,0.7992,2419.1,2418.1,4.13539883]
[1750951911184,0.1111545,2419.5,2418.1,0.41353988]
[1750951911369,0.1111545,2419.5,2418.6,4.13462009]
[1750951911658,0.1111545,2419.5,2419.1,4.13368685]
[1750951911844,0.1111545,2419.5,2418.3,5.128]
[1750951912225,0.1111545,2419.5,2418.7,30.0]
[1750951912430,0.1111545,2419.5,2418.4,20.757]
[1750951912431,0.7543,2419.4,2418.4,10.338]
[1750951912766,0.7543,2419.4,2419.0,4.13387896]
[1750951913072,0.7543,2419.4,2419.2,4.1335659]
[1750951913378,0.1111545,2419.5,2419.4,4.93735617]
[1750951913537,0.1111545,2419.5,2419.4,4.13325617]
[1750951913738,0.1111545,2419.5,2419.4,8.27066517]
[1750951914275,0.95034105,2421.5,2420.1,4.13194307]
[1750951914457,0.7543,2421.3,2419.4,10.8041]
[1750951914636,0.7543,2421.3,2419.9,4.13228647]
[1750951914832,0.7543,2421.3,2419.5,30.0]
[1750951915038,0.7543,2421.3,2419.5,4.083621]
[1750951915273,0.8159,2421.1,2419.6,4.13276314]
[1750951915475,0.4946193,2421.0,2419.6,4.13276314]
[1750951915645,0.4946193,2421.0,2419.6,4.13287519]
[1750951915845,0.8159,2420.9,2419.4,0.8041]
[1750951916046,5.0449,2420.9,2419.4,0.8041]
[1750951916265,0.2064,2420.1,2419.7,4.33910736]
[1750951916469,0.2064,2420.1,2419.8,4.13255876]
[1750951916665,0.2064,2420.1,2419.7,4.33910276]
[1750951916869,0.8159,2420.9,2420.0,4.13211564]
[1750951917146,0.8159,2420.9,2419.4,0.8041]
[1750951917446,0.8083,2420.7,2419.2,4.13347805]
[1750951917777,0.8083,2419.8,2418.6,4.13462333]
[1750951918076,0.2064,2419.0,2418.5,0.2064]
[1750951918246,0.8083,2418.2,2416.2,1.240672]
[1750951918446,0.8083,2418.2,2415.7,0.7812]
[1750951918447,0.2064,2416.4,2415.9,0.2064]
[1750951918648,0.2064,2416.4,2416.0,4.13906049]
[1750951918949,0.2064,2416.5,2416.1,0.2064]
[1750951920078,0.8225,2416.4,2415.4,3.29826]
[1750951920278,0.2064,2416.1,2415.7,0.2064]
[1750951920577,0.8225,2416.4,2415.8,4.13928964]
[1750951920762,0.2064,2416.3,2416.0,4.13907284]
[1750951920962,0.8225,2416.4,2415.3,5.1638]
[1750951921277,0.2064,2416.0,2415.6,0.2064]
[1750951921664,0.8225,2416.4,2415.9,4.13924417]
[1750951921978,0.7611,2417.2,2415.4,10.45]
[1750951922177,0.7611,2417.2,2415.6,15.61262]
[1750951922476,0.7611,2417.2,2415.7,10.0]
[1750951922779,0.7611,2417.2,2415.4,10.45]
[1750951922780,1.07611,2417.1,2416.0,4.13903133]
[1750951923244,0.55,2417.0,2415.1,2.647281]
[1750951923450,1.07611,2417.1,2415.1,10.0]
[1750951923676,1.07611,2417.1,2415.5,30.0]
[1750951923875,0.8326,2418.0,2416.4,4.13838768]
[1750951924078,0.8326,2418.0,2417.1,4.13707711]
[1750951924280,0.8326,2418.0,2416.5,14.75]
[1750951924281,0.8326,2418.0,2417.4,4.13654912]
[1750951924574,0.8326,2418.0,2416.8,4.13770274]
[1750951924575,0.8326,2418.0,2417.7,4.13601027]
[1750951924779,0.8326,2418.0,2417.0,10.402]
[1750951924944,0.8111,2418.9,2417.4,29.655667]
[1750951925149,0.8111,2418.9,2417.4,22.002817]
[1750951925475,0.8111,2418.9,2417.4,4.13667576]
[1750951925663,0.8111,2418.9,2418.3,4.13500787]
[1750951925870,0.8111,2418.9,2417.4,0.73660236]
[1750951926268,0.8111,2418.9,2417.6,4.13633355]
[1750951926469,0.8111,2418.9,2417.8,4.13599139]
[1750951926660,0.8111,2418.9,2417.8,10.0]
[1750951926856,0.8111,2418.9,2417.6,4.233]
[1750951927075,0.8111,2418.9,2418.2,4.13516338]
[1750951927275,0.8111,2418.9,2417.7,4.13616246]
[1750951927276,0.8111,2418.9,2418.1,4.13541911]
[1750951927650,0.8111,2418.9,2418.0,4.13560008]
[1750951928082,4.13603012,2417.8,2415.9,0.7751]
[1750951928384,0.7522,2417.0,2414.8,0.7751]
[1750951928571,0.7522,2416.7,2414.8,0.7751]
[1750951928879,0.8333,2416.6,2414.8,0.7751]
[1750951929049,10.0,2416.3,2414.4,0.005]
[1750951929252,0.8333,2416.2,2414.7,4.14115757]
[1750951929447,0.7522,2416.4,2414.7,23.56429815]
[1750951929658,0.7522,2416.4,2415.1,4.14055052]
[1750951929976,0.8333,2416.3,2415.2,4.5544902]
[1750951930183,0.8333,2416.3,2415.3,4.14023141]
[1750951930381,4.9721336,2416.2,2414.8,4.14112064]
[1750951930685,0.8333,2415.9,2414.6,4.14135333]
[1750951930883,0.7544,2415.8,2414.4,0.005]
[1750951931201,10.7544,2415.4,2414.4,0.005]
[1750951931350,1.5877,2415.1,2414.4,0.005]
[1750951931554,4.1420911,2414.3,2412.8,4.14455864]
[1750951931753,30.8333,2413.5,2412.4,0.25]
[1750951931984,26.15011342,2414.2,2412.4,0.25]
[1750951931985,40.8333,2413.3,2412.4,0.25]
[1750951932153,10.0,2413.0,2412.2,0.005]
[1750951932354,0.8333,2412.8,2412.2,0.005]
[1750951932561,0.55,2413.2,2412.2,0.005]
[1750951932750,0.8333,2412.8,2412.2,0.005]
[1750951935372,0.8283,2412.8,2412.2,0.005]
[1750951935574,10.7824,2412.7,2410.4,0.8009]
[1750951935774,0.8283,2412.2,2410.7,10.0]
[1750951935992,12.0425,2412.1,2410.3,3.756569]
[1750951936165,0.8002,2412.1,2410.6,4.14834481]
[1750951936371,0.8002,2412.1,2411.8,4.14615839]
[1750951936668,11.08157431,2413.8,2411.6,4.14650252]
[1750951936669,0.8002,2413.3,2411.6,30.0]
[1750951936906,0.8002,2413.3,2412.0,4.14593698]
[1750951937197,4.14237876,2414.1,2412.2,10.0]
[1750951937363,0.8002,2414.2,2412.3,4.238]
[1750951937565,30.8283,2414.1,2412.3,4.238]
[1750951937775,30.8283,2413.9,2412.4,0.4238]
[1750951937962,0.8283,2413.9,2412.4,0.4238]
[1750951938157,0.8283,2414.1,2413.0,4.14420079]
[1750951938368,0.8283,2414.1,2412.4,0.4238]
[1750951938369,0.8283,2414.1,2412.6,4.14483562]
[1750951938784,0.8283,2414.1,2412.8,4.14456233]
[1750951939098,0.8283,2414.1,2413.0,4.14406926]
[1750951939284,0.8283,2413.6,2411.9,4.14610887]
[1750951939473,0.8283,2413.6,2411.8,8.359545]
[1750951939681,0.8283,2413.6,2411.9,0.55]
[1750951940014,0.8002,2413.7,2413.2,4.14376099]
[1750951940315,14.644,2414.7,2412.7,4.14473411]
[1750951940316,30.0,2414.8,2413.3,0.4143761]
[1750951940619,0.8283,2414.7,2413.1,4.14403204]
[1750951940774,0.8283,2414.7,2413.0,4.239]
[1750951940975,0.8283,2414.6,2413.0,8.38319596]
[1750951941179,30.8283,2414.8,2413.1,4.14404294]
[1750951941489,30.8283,2414.8,2409.4,14.9653965]
[1750951941490,0.8086,2414.0,2412.4,4.14524954]
[1750951941676,0.8086,2414.0,2412.5,4.14493287]
[1750951941677,0.8283,2413.9,2412.5,4.14493287]
[1750951942063,0.8283,2413.9,2412.4,0.54793398]
[1750951942365,0.8283,2413.9,2412.7,4.14471678]
[1750951942561,0.8283,2413.9,2412.5,0.60243865]
[1750951942773,1.6369,2413.6,2412.5,0.60243865]
[1750951942984,1.6369,2413.6,2411.8,18.062808]
[1750951942985,1.6369,2413.5,2411.8,18.062808]
[1750951943204,0.8283,2413.4,2412.1,4.1457651]
[1750951943515,0.8086,2413.5,2413.0,4.1441714]
[1750951943807,0.8086,2413.5,2413.1,0.41441714]
[1750951944007,0.8086,2413.5,2412.9,4.14423675]
[1750951944311,0.8086,2413.5,2413.1,4.14401488]
[1750951944467,0.8086,2413.5,2412.7,10.351]
[1750951944664,0.7801,2414.6,2412.7,14.49569998]
[1750951944990,0.7801,2414.6,2412.7,10.351]
[1750951945187,0.7801,2414.6,2412.9,10.55]
[1750951945364,0.7801,2414.6,2413.5,30.8284]
[1750951945566,0.7801,2415.2,2413.7,18.466418]
[1750951945765,0.7801,2415.2,2413.8,10.352]
[1750951945998,0.7801,2415.2,2413.9,4.239]
[1750951946233,0.7801,2415.2,2414.6,4.14135956]
[1750951946420,0.7801,2415.2,2414.8,4.14112823]
[1750951946709,0.7801,2415.2,2414.0,4.14250207]
[1750951946880,0.7801,2415.2,2414.5,4.14153087]
[1750951947079,0.7801,2415.2,2414.2,8.38109742]
[1750951947433,0.7801,2415.2,2414.2,4.239]
[1750951947709,0.7801,2415.2,2414.9,4.14095569]
[1750951947871,0.7801,2415.2,2413.8,10.352]
[1750951947872,0.7801,2415.2,2413.8,14.49471767]
[1750951948066,0.7801,2415.2,2414.0,4.14250207]
[1750951948425,0.7801,2415.2,2413.8,14.49479165]
[1750951948573,0.7801,2415.2,2413.4,18.884928]
[1750951948902,0.7951,2415.0,2413.2,10.0]
[1750951949115,0.7951,2414.6,2413.0,8.27711263]
[1750951949415,0.7951,2414.6,2412.6,11.1318]
[1750951949416,1.59469394,2412.4,2410.9,1.243186]
[1750951949579,1.59469394,2412.4,2408.9,0.8092]
[1750951949580,11.08157431,2411.8,2409.0,4.15097379]
[1750951949778,10.0,2411.2,2408.9,0.8092]
[1750951949980,1.99232977,2411.3,2408.9,0.8092]
[1750951950213,21.75915743,2411.7,2408.9,0.8092]
[1750951950214,10.0,2411.0,2409.1,10.0]
[1750951950517,0.759,2411.0,2409.4,11.08157431]
[1750951950717,0.759,2411.0,2409.6,4.15004634]
[1750951950897,0.759,2411.0,2409.8,10.0]
[1750951951071,0.759,2411.0,2409.9,10.0]
[1750951951272,0.759,2411.0,2409.7,10.0]
[1750951951610,10.759,2411.0,2409.3,10.0]
[1750951951816,0.759,2411.0,2409.4,10.0]
[1750951951971,10.0,2410.8,2409.2,4.1506892]
[1750951952173,0.759,2411.0,2409.5,4.15012802]
[1750951952417,0.759,2411.0,2409.9,0.7969]
[1750951952656,0.7729,2411.5,2410.3,7.85572169]
[1750951952945,0.2072,2411.8,2411.0,9.472775]
[1750951953133,0.8124,2412.6,2411.0,9.472775]
[1750951953134,0.8124,2412.6,2411.4,0.2072]
[1750951953336,0.8124,2412.6,2411.7,0.2072]
[1750951953337,1.0196,2412.6,2411.7,0.2072]
[1750951953544,0.2072,2412.4,2412.0,0.2072]
[1750951953743,0.8124,2412.6,2411.5,10.355]
[1750951953946,1.0196,2412.6,2412.2,0.2072]
[1750951954319,0.7564,2413.4,2411.7,25.721892]
[1750951954518,0.2072,2413.0,2412.5,0.2072]
[1750951954720,0.2072,2413.0,2411.9,12.012671]
[1750951954721,0.7564,2413.4,2411.9,8.437533]
[1750951955026,0.2072,2413.0,2412.6,0.2072]
[1750951955350,0.7564,2413.4,2413.1,0.2064]
[1750951955551,0.8266,2414.4,2412.8,0.7913]
[1750951955726,0.2064,2414.4,2414.0,0.2064]
[1750951956055,0.2064,2414.7,2414.3,0.2064]
[1750951956300,0.7616,2415.0,2413.0,8.36234]
[1750951956421,4.90243495,2415.0,2413.5,4.14322632]
[1750951956752,4.90243495,2415.0,2413.1,10.49407962]
[1750951956753,0.2064,2414.2,2413.8,0.2064]
[1750951957320,1.1260641,2415.0,2414.2,4.14199723]
[1750951957518,0.94669412,2415.7,2414.2,4.14199723]
[1750951957519,0.3644641,2414.9,2414.6,0.2064]
[1750951957718,0.2064,2415.4,2414.9,0.2064]
[1750951957952,0.2064,2415.5,2414.9,0.2064]
[1750951958164,0.94669412,2415.5,2415.1,0.2064]
[1750951958331,1.31115822,2415.5,2414.8,30.0]
[1750951958532,0.3644641,2415.4,2415.0,10.0]
[1750951958761,0.3644641,2415.8,2414.7,0.7722]
[1750951958946,0.94669412,2415.9,2414.8,4.14110805]
[1750951959148,0.2064,2415.8,2415.3,0.2064]
[1750951959857,0.94669412,2416.0,2415.3,4.34655544]
[1750951960036,0.2064,2415.8,2415.4,0.2064]
[1750951960424,0.94669412,2416.0,2414.8,14.14103254]
[1750951960634,2.3636206,2416.6,2414.8,14.14103254]
[1750951960635,1.31475001,2416.1,2414.8,6.34137679]
[1750951960852,0.36805589,2416.0,2414.7,0.7722]
[1750951961035,1.31475001,2416.4,2415.4,4.13996462]
[1750951961246,1.31475001,2416.3,2415.7,4.13955272]
[1750951961452,0.36805589,2416.2,2415.5,0.41399646]
[1750951961773,0.94669412,2416.5,2416.0,4.1389656]
[1750951961973,0.94669412,2416.4,2415.6,11.08157431]
[1750951962138,0.36805589,2416.5,2415.9,30.0]
[1750951962454,0.36805589,2416.8,2416.7,4.13787396]
[1750951962629,0.36805589,2417.1,2416.1,4.13881916]
[1750951962843,0.94669412,2417.4,2417.1,4.13718773]
[1750951963142,0.36805589,2417.5,2416.7,4.13777283]
[1750951963339,0.36805589,2417.5,2416.4,19.107168]
[1750951965070,0.36805589,2418.0,2417.9,4.13571393]
[1750951965226,0.36805589,2418.4,2418.2,4.13519697]
[1750951965426,0.36805589,2418.6,2417.7,4.13607421]
[1750951965637,0.36805589,2419.0,2418.0,4.13564929]
[1750951965843,0.36805589,2418.9,2418.1,4.13547614]
[1750951966043,0.36805589,2418.8,2418.1,4.13547614]
[1750951966251,0.94669412,2419.0,2417.6,4.13621819]
[1750951966252,0.36805589,2419.0,2417.6,7.79804755]
[1750951966471,4.307,2418.9,2416.8,0.7567]
[1750951966670,0.7697,2418.6,2416.8,0.7567]
[1750951966882,1.13775589,2418.6,2416.9,40.0]
[1750951967179,0.36805589,2418.5,2417.7,4.13614696]
[1750951967339,0.7697,2418.6,2417.4,22.673526]
[1750951967542,0.7697,2418.6,2416.8,10.7567]
[1750951967767,0.7697,2418.6,2416.9,10.0]
[1750951967972,0.55,2418.5,2416.8,0.7567]
[1750951968173,10.8114,2418.2,2416.7,4.307]
[1750951968383,10.8114,2418.2,2416.5,10.348]
[1750951968384,1.08114,2418.1,2416.6,11.636222]
[1750951968541,1.08114,2418.1,2416.5,10.348]
[1750951968737,1.08114,2418.1,2417.0,4.1372626]
[1750951968971,1.08114,2418.1,2416.5,10.348]
[1750951969151,1.08114,2418.1,2416.2,5.0823]
[1750951969152,0.7628,2417.9,2416.2,0.7753]
[1750951969348,0.7628,2417.9,2416.2,4.13871613]
[1750951969655,0.7628,2417.9,2416.5,22.770153]
[1750951969970,0.7628,2417.9,2416.6,4.13804518]
[1750951970176,0.7628,2417.9,2416.5,0.7595]
[1750951970469,0.7628,2417.9,2417.2,4.13690234]
[1750951970676,0.7628,2417.9,2417.4,0.2064]
[1750951970677,0.2064,2417.8,2417.4,0.2064]
[1750951970837,0.7628,2417.9,2417.5,4.13641045]
[1750951971038,0.7686,2418.3,2416.6,10.341]
[1750951971247,0.2064,2418.0,2417.6,4.34257621]
[1750951971458,0.2064,2418.2,2417.8,0.2064]
[1750951971663,0.9715,2418.8,2417.9,0.2064]
[1750951971862,0.9715,2418.8,2418.3,0.2064]
[1750951972298,0.7651,2418.8,2418.2,4.13513821]
[1750951972499,0.2064,2418.7,2418.3,0.2064]
[1750951972660,0.2064,2419.1,2418.7,0.2064]
[1750951972851,3.17445335,2420.2,2419.2,4.13359788]
[1750951972852,0.2064,2419.4,2419.2,4.13359788]
[1750951973184,0.7734,2419.8,2419.1,4.133688]
[1750951973384,0.2064,2419.3,2418.0,10.0]
[1750951973589,0.2064,2419.1,2418.7,0.2064]
[1750951974788,0.2064,2418.8,2417.7,10.0]
[1750951974991,0.2064,2418.6,2418.1,0.2064]
[1750951975291,0.7565,2419.0,2417.6,4.203]
[1750951975458,0.7565,2419.0,2417.9,11.04345533]
[1750951975655,0.7565,2419.0,2418.4,4.13492469]
[1750951975890,0.7565,2419.0,2418.5,4.13475913]
[1750951976091,10.7565,2419.9,2418.5,4.13475913]
[1750951976277,0.7565,2419.9,2418.4,12.9229]
[1750951976588,0.7565,2419.4,2417.6,4.201]
[1750951976896,0.7565,2419.4,2417.9,4.13582033]
[1750951977190,0.7565,2419.4,2418.5,4.13475357]
[1750951977492,0.7565,2419.4,2417.7,4.68616246]
[1750951977688,0.7565,2419.4,2418.2,18.517629]
[1750951977894,0.7565,2419.4,2418.8,4.13424025]
[1750951978469,0.7565,2419.4,2417.8,10.0]
[1750951978862,0.7565,2419.4,2417.9,4.13581728]
[1750951979188,0.7565,2419.4,2418.1,4.13537899]
[1750951979397,0.2149466,2419.5,2416.0,0.51]
[1750951979398,9.04313625,2418.3,2416.0,0.51]